[Event "56th Biel Festival Rapid 2023"]
[Site "Biel"]
[Date "2024.04.13"]
[Round "7.21"]
[White "Schmuki, Roman"]
[Black "Dergatschova, Anna"]
[Result "1-0"]
[WhiteElo "1867"]
[BlackElo "2120"]
[PlyCount "69"]
[EventDate "2023.07.16"]
[EventType "swiss"]
[EventCountry "SUI"]
[TimeControl "900+5"]

1. e4 {[%emt 0:00:06]} c5 {[%emt 0:00:05]} 2. Nf3 {[%emt 0:00:02]} Nc6 {[%emt 0:00:08]} 3. d4 {[%emt 0:00:02]} cxd4 {[%emt 0:00:05]} 4. Nxd4 {[%emt 0:00:05]} g6 {[%emt 0:00:03]} 5. c4 {[%emt 0:00:12]} Nxd4 {[%emt 0:00:08]} 6. Qxd4 {[%emt 0:00:02]} Nf6 {[%emt 0:00:07]} 7. Nc3 {[%emt 0:00:06]} Bg7 {[%emt 0:00:42]} 8. Be2 {[%emt 0:00:31]} O-O {[%emt 0:00:11]} 9. Qd1 {[%emt 0:00:11]} d6 {[%emt 0:00:19]} 10. O-O {[%emt 0:00:08]} Bd7 {[%emt 0:00:09]} 11. Be3 {[%emt 0:01:04]} Bc6 {[%emt 0:00:23]} 12. Qc2 {[%emt 0:00:34]} a6 {[%emt 0:00:17]} 13. Rac1 {[%emt 0:01:15]} Rc8 {[%emt 0:00:12]} 14. Qb1 {[%emt 0:00:35]} Nd7 {[%emt 0:01:38]} 15. Rfd1 {[%emt 0:01:14]} Qe8 {[%emt 0:00:35]} 16. b4 {[%emt 0:01:52]} Bxc3 {[%emt 0:01:28]} 17. Rxc3 {[%emt 0:00:03]} b5 {[%emt 0:00:39]} 18. Rdc1 {[%emt 0:00:30]} Rb8 {[%emt 0:00:41]} 19. Bh6 {[%emt 0:00:35]} Nf6 {[%emt 0:00:49]} 20. f3 {[%emt 0:00:24]} Qd8 {[%emt 0:00:19]} 21. Bxf8 {[%emt 0:00:07]} Kxf8 {[%emt 0:00:04]} 22. Rd1 {[%emt 0:00:35]} Qb6+ {[%emt 0:00:50]} 23. c5 {[%emt 0:00:14]} Qa7 {[%emt 0:00:05]} 24. Kh1 {[%emt 0:00:05]} d5 {[%emt 0:00:00]} 25. exd5 {[%emt 0:00:30]} Bxd5 {[%emt 0:00:09]} 26. Rcd3 {[%emt 0:00:39]} e6 {[%emt 0:00:01]} 27. Qb2 {[%emt 0:00:08]} Ke7 {[%emt 0:00:16]} 28. Qe5 {[%emt 0:00:47]} Rd8 {[%emt 0:00:33]} 29. Rd4 {[%emt 0:00:38]} Qb7 {[%emt 0:00:22]} 30. Qg5 {[%emt 0:00:49]} h6 {[%emt 0:01:36]} 31. Qe5 {[%emt 0:00:44]} Qc6 {[%emt 0:00:23]} 32. R1d2 {[%emt 0:00:10]} g5 {[%emt 0:00:18]} 33. Bd3 {[%emt 0:00:25]} Bxf3 {[%emt 0:00:58]} 34. Rxd8 {[%emt 0:00:14]} Bxg2+ {[%emt 0:00:51]} 35. Rxg2 {[%emt 0:00:03]} 1-0

[Event "56th Biel Festival Rapid 2023"]
[Site "Biel"]
[Date "2024.04.13"]
[Round "7.22"]
[White "Chobaut, Nicolas"]
[Black "Schweizer, Samuel"]
[Result "0-1"]
[WhiteElo "1919"]
[BlackElo "2084"]
[PlyCount "72"]
[EventDate "2023.07.16"]
[EventType "swiss"]
[EventCountry "SUI"]
[TimeControl "900+5"]

1. c4 {[%emt 0:00:05]} g6 {[%emt 0:00:08]} 2. g3 {[%emt 0:00:14]} Bg7 {[%emt 0:00:01]} 3. Bg2 {[%emt 0:00:07]} d6 {[%emt 0:00:07]} 4. Nf3 {[%emt 0:00:30]} e5 {[%emt 0:00:10]} 5. Nc3 {[%emt 0:00:16]} Ne7 {[%emt 0:00:08]} 6. d3 {[%emt 0:00:19]} Nbc6 {[%emt 0:00:09]} 7. Rb1 {[%emt 0:00:41]} f5 {[%emt 0:00:11]} 8. O-O {[%emt 0:00:49]} O-O {[%emt 0:00:03]} 9. Bg5 {[%emt 0:00:25]} h6 {[%emt 0:00:02]} 10. Bxe7 {[%emt 0:00:14]} Nxe7 {[%emt 0:00:01]} 11. e3 {[%emt 0:01:27]} Kh7 {[%emt 0:00:03]} 12. d4 {[%emt 0:00:20]} e4 {[%emt 0:00:07]} 13. Nd2 {[%emt 0:00:06]} Be6 {[%emt 0:00:09]} 14. f3 {[%emt 0:00:31]} exf3 {[%emt 0:00:04]} 15. Bxf3 {[%emt 0:00:05]} c6 {[%emt 0:00:03]} 16. d5 {[%emt 0:01:06]} Bg8 {[%emt 0:00:15]} 17. Kh1 {[%emt 0:03:40]} Qc7 {[%emt 0:01:04]} 18. Nb3 {[%emt 0:00:11]} c5 {[%emt 0:00:30]} 19. Qc2 {[%emt 0:01:12]} a6 {[%emt 0:00:04]} 20. a4 {[%emt 0:00:01]} Rae8 {[%emt 0:00:02]} 21. Rbe1 {[%emt 0:00:21]} Kh8 {[%emt 0:00:29]} 22. Nd2 {[%emt 0:00:02]} Bh7 {[%emt 0:00:02]} 23. Qb3 {[%emt 0:00:43]} g5 {[%emt 0:00:23]} 24. Bg2 {[%emt 0:00:15]} Ng6 {[%emt 0:00:04]} 25. e4 {[%emt 0:00:11]} f4 {[%emt 0:00:11]} 26. Ne2 {[%emt 0:00:36]} Be5 {[%emt 0:00:55]} 27. gxf4 {[%emt 0:00:20]} Nxf4 {[%emt 0:00:04]} 28. Nxf4 {[%emt 0:00:05]} Bxf4 {[%emt 0:00:07]} 29. Rf2 {[%emt 0:01:18]} Qe7 {[%emt 0:01:32]} 30. Rfe2 {[%emt 0:00:08]} g4 {[%emt 0:00:10]} 31. Nf1 {[%emt 0:00:05]} Be5 {[%emt 0:00:06]} 32. Ng3 {[%emt 0:00:13]} Qh4 {[%emt 0:00:09]} 33. Kg1 {[%emt 0:00:37]} Rf7 {[%emt 0:00:47]} 34. Rf1 {[%emt 0:00:05]} Ref8 {[%emt 0:00:09]} 35. Rxf7 {[%emt 0:00:00]} Rxf7 {[%emt 0:00:02]} 36. Rf2 {[%emt 0:00:04]} Bd4 {[%emt 0:00:03]} 0-1

[Event "56th Biel Festival Rapid 2023"]
[Site "Biel"]
[Date "2024.04.13"]
[Round "7.28"]
[White "Baghirov, Rasul"]
[Black "Kleinert, Juergen"]
[Result "*"]
[WhiteElo "1992"]
[BlackElo "1802"]
[PlyCount "79"]
[EventDate "2023.07.16"]
[EventType "swiss"]
[EventCountry "SUI"]
[TimeControl "900+5"]

1. e4 {[%emt 0:00:11]} e5 {[%emt 0:00:05]} 2. Nf3 {[%emt 0:00:05]} d5 {[%emt 0:00:01]} 3. d4 {[%emt 0:00:01]} dxe4 {[%emt 0:00:37]} 4. Nxe5 {[%emt 0:00:08]} Bd6 {[%emt 0:00:01]} 5. Nc4 {[%emt 0:00:28]} Be7 {[%emt 0:00:53]} 6. Nc3 {[%emt 0:00:02]} Nf6 {[%emt 0:00:46]} 7. Be2 {[%emt 0:00:06]} O-O {[%emt 0:00:16]} 8. Bg5 {[%emt 0:00:18]} Bf5 {[%emt 0:00:08]} 9. O-O {[%emt 0:00:01]} h6 {[%emt 0:00:17]} 10. Bh4 {[%emt 0:00:03]} Nc6 {[%emt 0:00:06]} 11. d5 {[%emt 0:00:44]} Nb4 {[%emt 0:00:13]} 12. Ne3 {[%emt 0:00:03]} Bh7 {[%emt 0:00:23]} 13. Bg3 {[%emt 0:00:06]} c6 {[%emt 0:02:08]} 14. dxc6 {[%emt 0:00:18]} Nxc6 {[%emt 0:00:46]} 15. Bc4 {[%emt 0:00:02]} Qa5 {[%emt 0:00:47]} 16. Ned5 {[%emt 0:00:28]} Nxd5 {[%emt 0:01:15]} 17. Nxd5 {[%emt 0:01:22]} Bg5 {[%emt 0:00:45]} 18. h4 {[%emt 0:00:55]} Bd8 {[%emt 0:01:01]} 19. Bd6 {[%emt 0:00:10]} Re8 {[%emt 0:00:47]} 20. b4 {[%emt 0:00:36]} Qa3 {[%emt 0:00:37]} 21. Rb1 {[%emt 0:00:27]} Ne5 {[%emt 0:01:28]} 22. Rb3 {[%emt 0:01:36]} Qa4 {[%emt 0:01:14]} 23. Nc3 {[%emt 0:00:31]} Qd7 {[%emt 0:00:07]} 24. Bxe5 {[%emt 0:00:49]} Qxd1 {[%emt 0:00:17]} 25. Rxd1 {[%emt 0:00:03]} Rxe5 {[%emt 0:00:01]} 26. Rd7 {[%emt 0:00:01]} e3 {[%emt 0:00:10]} 27. Rxf7 {[%emt 0:01:22]} Kh8 {[%emt 0:00:35]} 28. Rf8+ {[%emt 0:00:02]} Bg8 {[%emt 0:00:07]} 29. Rxg8+ {[%emt 0:00:09]} Kh7 {[%emt 0:00:07]} 30. Ne2 {[%emt 0:00:01]} b5 {[%emt 0:00:29]} 31. Bf7 {[%emt 0:00:17]} exf2+ {[%emt 0:00:37]} 32. Kf1 {[%emt 0:00:03]} Rf5 {[%emt 0:00:01]} 33. Rf8 {[%emt 0:00:49]} g6 {[%emt 0:00:03]} 34. Bg8+ {[%emt 0:00:49]} Kg7 {[%emt 0:00:05]} 35. Rxf5 {[%emt 0:00:03]} gxf5 {[%emt 0:00:01]} 36. Bd5 {[%emt 0:00:00]} Rc8 {[%emt 0:00:09]} 37. Rc3 {[%emt 0:00:03]} Rb8 {[%emt 0:00:05]} 38. g3 {[%emt 0:00:06]} Bf6 {[%emt 0:00:05]} 39. Rc7+ {[%emt 0:00:05]} Kg6 {[%emt 0:00:02]} 40. Nf4# {[%emt 0:00:01]} *

[Event "56th Biel Festival Rapid 2023"]
[Site "Biel"]
[Date "2024.04.13"]
[Round "7.34"]
[White "Tcheau, Alain"]
[Black "Begdullayev, Tamerlan"]
[Result "*"]
[WhiteElo "1985"]
[BlackElo "1783"]
[PlyCount "104"]
[EventDate "2023.07.16"]
[EventType "swiss"]
[EventCountry "SUI"]
[TimeControl "900+5"]

1. d4 {[%emt 0:00:00]} d5 {[%emt 0:00:03]} 2. e3 {[%emt 0:00:04]} Nf6 {[%emt 0:00:03]} 3. Nc3 {[%emt 0:00:03]} c5 {[%emt 0:00:06]} 4. dxc5 {[%emt 0:00:03]} e6 {[%emt 0:00:13]} 5. Nf3 {[%emt 0:00:04]} Bxc5 {[%emt 0:00:10]} 6. Bb5+ {[%emt 0:00:02]} Bd7 {[%emt 0:00:41]} 7. Bxd7+ {[%emt 0:00:09]} Nbxd7 {[%emt 0:00:03]} 8. O-O {[%emt 0:00:03]} O-O {[%emt 0:00:08]} 9. Bd2 {[%emt 0:00:14]} Rb8 {[%emt 0:00:14]} 10. Ne2 {[%emt 0:00:22]} Bd6 {[%emt 0:00:20]} 11. Ng3 {[%emt 0:00:18]} Qc7 {[%emt 0:00:19]} 12. Rc1 {[%emt 0:00:48]} Ne4 {[%emt 0:00:34]} 13. Re1 {[%emt 0:00:57]} Ndf6 {[%emt 0:00:26]} 14. Nd4 {[%emt 0:00:52]} Nxg3 {[%emt 0:01:01]} 15. hxg3 {[%emt 0:00:26]} a6 {[%emt 0:00:46]} 16. b3 {[%emt 0:00:22]} b5 {[%emt 0:00:42]} 17. c3 {[%emt 0:00:36]} Ne4 {[%emt 0:00:21]} 18. Rc2 {[%emt 0:00:18]} Rfc8 {[%emt 0:01:12]} 19. Qc1 {[%emt 0:00:27]} Qe7 {[%emt 0:00:44]} 20. Rd1 {[%emt 0:00:48]} Qf6 {[%emt 0:01:31]} 21. Be1 {[%emt 0:00:08]} Rc7 {[%emt 0:00:29]} 22. Ne2 {[%emt 0:01:38]} Rbc8 {[%emt 0:00:50]} 23. f3 {[%emt 0:00:13]} Nc5 {[%emt 0:00:35]} 24. c4 {[%emt 0:00:14]} bxc4 {[%emt 0:00:16]} 25. bxc4 {[%emt 0:00:09]} Nb7 {[%emt 0:00:44]} 26. Qb2 {[%emt 0:03:53]} Qxb2 {[%emt 0:00:29]} 27. Rxb2 {[%emt 0:00:02]} Be5 {[%emt 0:00:27]} 28. Rb6 {[%emt 0:00:19]} dxc4 {[%emt 0:00:25]} 29. Rxa6 {[%emt 0:00:07]} c3 {[%emt 0:00:09]} 30. Nc1 {[%emt 0:00:30]} c2 {[%emt 0:00:25]} 31. Rd2 {[%emt 0:00:21]} Bb2 {[%emt 0:00:11]} 32. Nd3 {[%emt 0:00:51]} c1=Q {[%emt 0:00:16]} 33. Nxc1 {[%emt 0:00:03]} Bxc1 {[%emt 0:01:10]} 34. Rd1 {[%emt 0:00:26]} Bxe3+ {[%emt 0:00:08]} 35. Kh2 {[%emt 0:00:11]} Rc5 {[%emt 0:00:22]} 36. g4 {[%emt 0:00:13]} h5 {[%emt 0:00:19]} 37. Rd7 {[%emt 0:00:10]} Nd8 {[%emt 0:00:20]} 38. Ba5 {[%emt 0:00:21]} Rd5 {[%emt 0:00:27]} 39. Rxd5 {[%emt 0:00:41]} exd5 {[%emt 0:00:06]} 40. Rd6 {[%emt 0:00:07]} Nb7 {[%emt 0:00:14]} 41. Rxd5 {[%emt 0:00:05]} hxg4 {[%emt 0:00:03]} 42. Bb4 {[%emt 0:00:12]} Bf4+ {[%emt 0:00:16]} 43. Kg1 {[%emt 0:00:19]} g3 {[%emt 0:00:10]} 44. Rd1 {[%emt 0:00:25]} Rc2 {[%emt 0:00:06]} 45. a3 {[%emt 0:00:03]} Be3+ {[%emt 0:00:04]} 46. Kf1 {[%emt 0:00:02]} Rf2+ {[%emt 0:00:06]} 47. Ke1 {[%emt 0:00:05]} Rxg2 {[%emt 0:00:01]} 48. Rd7 {[%emt 0:00:03]} Nc5 {[%emt 0:00:05]} 49. Rd8+ {[%emt 0:00:11]} Kh7 {[%emt 0:00:06]} 50. Kd1 {[%emt 0:00:02]} Ne6 {[%emt 0:00:00]} 51. Re8 {[%emt 0:00:05]} Ra2 {[%emt 0:00:05]} 52. Re7 {[%emt 0:00:08]} g2 {[%emt 0:00:04]} *

[Event "56th Biel Festival Rapid 2023"]
[Site "Biel"]
[Date "2024.04.13"]
[Round "7.38"]
[White "Wilhelm, Serge"]
[Black "Schreiber, Edwin"]
[Result "1-0"]
[WhiteElo "1959"]
[BlackElo "1772"]
[PlyCount "36"]
[EventDate "2023.07.16"]
[EventType "swiss"]
[EventCountry "SUI"]
[TimeControl "900+5"]

1. d4 {[%emt 0:00:03]} Nf6 {[%emt 0:00:08]} 2. Bg5 {[%emt 0:00:02]} c5 {[%emt 0:00:10]} 3. Nc3 {[%emt 0:00:03]} cxd4 {[%emt 0:00:09]} 4. Qxd4 {[%emt 0:00:05]} Nc6 {[%emt 0:00:06]} 5. Qh4 {[%emt 0:00:00]} Qa5 {[%emt 0:00:25]} 6. O-O-O {[%emt 0:00:15]} d6 {[%emt 0:01:05]} 7. e4 {[%emt 0:00:06]} a6 {[%emt 0:00:02]} 8. Bd2 {[%emt 0:01:55]} Be6 {[%emt 0:00:13]} 9. Nge2 {[%emt 0:00:40]} g6 {[%emt 0:01:05]} 10. Nf4 {[%emt 0:00:14]} Bg7 {[%emt 0:00:37]} 11. Nd3 {[%emt 0:00:48]} Bd7 {[%emt 0:00:19]} 12. Bh6 {[%emt 0:01:12]} O-O {[%emt 0:00:26]} 13. Bxg7 {[%emt 0:00:19]} Kxg7 {[%emt 0:00:20]} 14. f4 {[%emt 0:00:27]} Nb4 {[%emt 0:00:52]} 15. Nxb4 {[%emt 0:01:06]} Bg4 {[%emt 0:00:20]} 16. Qe1 {[%emt 0:00:29]} Be6 {[%emt 0:00:51]} 17. Rd3 {[%emt 0:00:35]} Nxe4 {[%emt 0:00:17]} 18. Qd2 {[%emt 0:00:45]} Bf5 {[%emt 0:00:21]} 1-0

[Event "56th Biel Festival Rapid 2023"]
[Site "Biel"]
[Date "2024.04.13"]
[Round "7.41"]
[White "Arpa, Enes Salih"]
[Black "Dorand, Jean-Pierre"]
[Result "1/2-1/2"]
[WhiteElo "1349"]
[BlackElo "1885"]
[PlyCount "67"]
[EventDate "2023.07.16"]
[EventType "swiss"]
[EventCountry "SUI"]
[TimeControl "900+5"]

1. e4 {[%emt 0:00:03]} c6 {[%emt 0:00:01]} 2. d4 {[%emt 0:00:02]} d5 {[%emt 0:00:03]} 3. exd5 {[%emt 0:00:03]} cxd5 {[%emt 0:00:01]} 4. Bd3 {[%emt 0:00:03]} Nc6 {[%emt 0:00:02]} 5. Nf3 {[%emt 0:00:02]} Qc7 {[%emt 0:00:06]} 6. h3 {[%emt 0:00:09]} Nf6 {[%emt 0:00:02]} 7. c3 {[%emt 0:00:03]} g6 {[%emt 0:00:05]} 8. Be3 {[%emt 0:00:13]} Bg7 {[%emt 0:00:00]} 9. Nbd2 {[%emt 0:00:09]} O-O {[%emt 0:00:01]} 10. O-O {[%emt 0:00:04]} Re8 {[%emt 0:00:26]} 11. Nb3 {[%emt 0:00:28]} b6 {[%emt 0:00:11]} 12. Rc1 {[%emt 0:00:50]} Bb7 {[%emt 0:00:04]} 13. Re1 {[%emt 0:00:38]} e5 {[%emt 0:01:00]} 14. dxe5 {[%emt 0:00:08]} Nxe5 {[%emt 0:00:02]} 15. Nxe5 {[%emt 0:00:03]} Qxe5 {[%emt 0:00:01]} 16. Bd4 {[%emt 0:00:33]} Qxe1+ {[%emt 0:00:10]} 17. Qxe1 {[%emt 0:00:02]} Rxe1+ {[%emt 0:00:02]} 18. Rxe1 {[%emt 0:00:02]} Re8 {[%emt 0:00:08]} 19. Rxe8+ {[%emt 0:00:03]} Nxe8 {[%emt 0:00:01]} 20. Bxg7 {[%emt 0:00:05]} Nxg7 {[%emt 0:00:03]} 21. Nd4 {[%emt 0:00:28]} Kf8 {[%emt 0:00:03]} 22. Kf1 {[%emt 0:00:57]} Ke7 {[%emt 0:00:03]} 23. Ke2 {[%emt 0:00:16]} Ne6 {[%emt 0:00:03]} 24. Nxe6 {[%emt 0:00:06]} Kxe6 {[%emt 0:00:02]} 25. g3 {[%emt 0:00:43]} h6 {[%emt 0:00:01]} 26. Ke3 {[%emt 0:00:22]} g5 {[%emt 0:00:13]} 27. Kd4 {[%emt 0:01:39]} f6 {[%emt 0:00:14]} 28. Be2 {[%emt 0:00:31]} Kd6 {[%emt 0:00:45]} 29. Bf3 {[%emt 0:00:08]} Bc6 {[%emt 0:00:02]} 30. b4 {[%emt 0:02:05]} Bd7 {[%emt 0:00:05]} 31. h4 {[%emt 0:00:16]} Be6 {[%emt 0:00:19]} 32. a3 {[%emt 0:01:37]} Bf7 {[%emt 0:02:25]} 33. Bg2 {[%emt 0:00:32]} Be6 {[%emt 0:00:09]} 34. Bf3 {[%emt 0:00:05]} 1/2-1/2

[Event "56th Biel Festival Rapid 2023"]
[Site "Biel"]
[Date "2024.04.13"]
[Round "7.42"]
[White "Malli, Shiivesh Sunil"]
[Black "Dittmar, Michael"]
[Result "0-1"]
[WhiteElo "1835"]
[BlackElo "1706"]
[PlyCount "68"]
[EventDate "2023.07.16"]
[EventType "swiss"]
[EventCountry "SUI"]
[TimeControl "900+5"]

1. c4 {[%emt 0:00:06]} e6 {[%emt 0:00:01]} 2. Nc3 {[%emt 0:00:02]} f5 {[%emt 0:00:01]} 3. g3 {[%emt 0:00:02]} d5 {[%emt 0:00:03]} 4. cxd5 {[%emt 0:00:10]} exd5 {[%emt 0:00:01]} 5. d4 {[%emt 0:00:01]} c6 {[%emt 0:00:01]} 6. Bg2 {[%emt 0:00:02]} Nf6 {[%emt 0:00:08]} 7. Nf3 {[%emt 0:00:04]} Bd6 {[%emt 0:00:09]} 8. O-O {[%emt 0:00:06]} O-O {[%emt 0:00:02]} 9. Re1 {[%emt 0:00:04]} Nbd7 {[%emt 0:00:39]} 10. a3 {[%emt 0:00:09]} Ne4 {[%emt 0:00:31]} 11. Nd2 {[%emt 0:00:16]} Nxc3 {[%emt 0:00:07]} 12. bxc3 {[%emt 0:00:04]} Nf6 {[%emt 0:00:17]} 13. f3 {[%emt 0:00:20]} f4 {[%emt 0:00:18]} 14. gxf4 {[%emt 0:00:04]} Bxf4 {[%emt 0:00:01]} 15. e4 {[%emt 0:00:02]} Nh5 {[%emt 0:01:22]} 16. Nf1 {[%emt 0:00:12]} Qg5 {[%emt 0:00:15]} 17. Bxf4 {[%emt 0:00:22]} Nxf4 {[%emt 0:00:06]} 18. Ng3 {[%emt 0:00:08]} h5 {[%emt 0:00:30]} 19. exd5 {[%emt 0:01:01]} h4 {[%emt 0:00:45]} 20. Re5 {[%emt 0:00:02]} Bf5 {[%emt 0:00:02]} 21. Qb3 {[%emt 0:02:10]} cxd5 {[%emt 0:01:23]} 22. Rxd5 {[%emt 0:00:27]} Nxd5 {[%emt 0:00:16]} 23. Qxd5+ {[%emt 0:00:04]} Kh8 {[%emt 0:00:30]} 24. Nxf5 {[%emt 0:00:16]} Rxf5 {[%emt 0:00:17]} 25. Qxb7 {[%emt 0:00:12]} Raf8 {[%emt 0:00:19]} 26. Kh1 {[%emt 0:00:15]} Qe3 {[%emt 0:01:41]} 27. Qe4 {[%emt 0:00:40]} Qxe4 {[%emt 0:02:00]} 28. fxe4 {[%emt 0:00:01]} Rf2 {[%emt 0:00:23]} 29. Kg1 {[%emt 0:00:45]} Rc2 {[%emt 0:00:12]} 30. Rf1 {[%emt 0:00:02]} Rxf1+ {[%emt 0:00:22]} 31. Bxf1 {[%emt 0:00:01]} Rxc3 {[%emt 0:00:02]} 32. a4 {[%emt 0:00:07]} Re3 {[%emt 0:00:27]} 33. Bg2 {[%emt 0:00:54]} h3 {[%emt 0:00:20]} 34. Bh1 {[%emt 0:00:07]} Re1+ {[%emt 0:00:01]} 0-1

[Event "56th Biel Festival Rapid 2023"]
[Site "Biel"]
[Date "2024.04.13"]
[Round "7.43"]
[White "Lang, Fabian"]
[Black "Sai Mahati A"]
[Result "*"]
[WhiteElo "1914"]
[BlackElo "1669"]
[PlyCount "122"]
[EventDate "2023.07.16"]
[EventType "swiss"]
[EventCountry "SUI"]
[TimeControl "900+5"]

1. d4 {[%emt 0:00:06]} d5 {[%emt 0:00:01]} 2. Nf3 {[%emt 0:00:01]} Nf6 {[%emt 0:00:02]} 3. e3 {[%emt 0:00:05]} e6 {[%emt 0:00:13]} 4. Bd3 {[%emt 0:00:00]} Bd6 {[%emt 0:00:02]} 5. Nbd2 {[%emt 0:00:00]} O-O {[%emt 0:00:11]} 6. O-O {[%emt 0:00:01]} c5 {[%emt 0:00:01]} 7. c3 {[%emt 0:00:02]} Nc6 {[%emt 0:00:12]} 8. dxc5 {[%emt 0:00:07]} Bxc5 {[%emt 0:00:03]} 9. e4 {[%emt 0:00:01]} e5 {[%emt 0:02:06]} 10. b4 {[%emt 0:00:57]} dxe4 {[%emt 0:03:29]} 11. Nxe4 {[%emt 0:00:12]} Nxe4 {[%emt 0:00:03]} 12. Bxe4 {[%emt 0:00:07]} Bd6 {[%emt 0:00:02]} 13. Bg5 {[%emt 0:01:57]} Qc7 {[%emt 0:00:24]} 14. Rc1 {[%emt 0:00:27]} h6 {[%emt 0:00:09]} 15. Bh4 {[%emt 0:00:32]} Be6 {[%emt 0:00:57]} 16. Bd5 {[%emt 0:00:17]} Bxd5 {[%emt 0:00:08]} 17. Qxd5 {[%emt 0:00:03]} Ne7 {[%emt 0:00:29]} 18. Bxe7 {[%emt 0:00:11]} Qxe7 {[%emt 0:00:01]} 19. Rfe1 {[%emt 0:00:17]} Rfe8 {[%emt 0:00:08]} 20. a3 {[%emt 0:00:21]} Rad8 {[%emt 0:00:08]} 21. Qe4 {[%emt 0:00:15]} a5 {[%emt 0:01:00]} 22. g3 {[%emt 0:00:28]} Ra8 {[%emt 0:00:22]} 23. Ra1 {[%emt 0:00:23]} Qc7 {[%emt 0:00:12]} 24. Rec1 {[%emt 0:00:17]} Qc6 {[%emt 0:01:19]} 25. Qxc6 {[%emt 0:01:22]} bxc6 {[%emt 0:00:02]} 26. Kf1 {[%emt 0:00:28]} f6 {[%emt 0:01:18]} 27. Ke2 {[%emt 0:00:05]} Kf7 {[%emt 0:00:02]} 28. Nd2 {[%emt 0:00:14]} Reb8 {[%emt 0:00:18]} 29. Ne4 {[%emt 0:00:28]} Be7 {[%emt 0:00:10]} 30. Rd1 {[%emt 0:00:14]} Ke6 {[%emt 0:00:10]} 31. Kd3 {[%emt 0:00:23]} f5 {[%emt 0:00:05]} 32. Nc5+ {[%emt 0:00:51]} Bxc5 {[%emt 0:00:27]} 33. bxc5 {[%emt 0:00:01]} Rd8+ {[%emt 0:01:19]} 34. Kc4 {[%emt 0:00:03]} e4 {[%emt 0:00:13]} 35. Rd4 {[%emt 0:00:39]} Rxd4+ {[%emt 0:00:20]} 36. Kxd4 {[%emt 0:02:17]} Rd8+ {[%emt 0:00:04]} 37. Kc4 {[%emt 0:00:05]} Rd2 {[%emt 0:00:11]} 38. Rb1 {[%emt 0:00:00]} Rxf2 {[%emt 0:00:28]} 39. Rb6 {[%emt 0:00:03]} e3 {[%emt 0:00:06]} 40. Rxc6+ {[%emt 0:00:05]} Ke7 {[%emt 0:00:32]} 41. Kd3 {[%emt 0:00:19]} Rxh2 {[%emt 0:00:09]} 42. Kxe3 {[%emt 0:00:04]} Ra2 {[%emt 0:00:02]} 43. Rg6 {[%emt 0:00:41]} Rxa3 {[%emt 0:00:18]} 44. Kd4 {[%emt 0:00:24]} Ra4+ {[%emt 0:00:32]} 45. Kd5 {[%emt 0:00:25]} Rg4 {[%emt 0:00:01]} 46. Re6+ {[%emt 0:00:57]} Kd8 {[%emt 0:00:10]} 47. Ra6 {[%emt 0:01:26]} Rxg3 {[%emt 0:00:08]} 48. c4 {[%emt 0:00:18]} Rd3+ {[%emt 0:00:11]} 49. Kc6 {[%emt 0:00:01]} f4 {[%emt 0:00:02]} 50. Rxa5 {[%emt 0:00:07]} f3 {[%emt 0:00:01]} 51. Ra8+ {[%emt 0:00:02]} Ke7 {[%emt 0:00:00]} 52. Kb6 {[%emt 0:00:02]} f2 {[%emt 0:00:02]} 53. Ra1 {[%emt 0:00:03]} Rb3+ {[%emt 0:00:01]} 54. Kc7 {[%emt 0:00:02]} Rc3 {[%emt 0:00:02]} 55. Rf1 {[%emt 0:00:03]} Rxc4 {[%emt 0:00:02]} 56. Rxf2 {[%emt 0:00:02]} Rxc5+ {[%emt 0:00:00]} 57. Kb6 {[%emt 0:00:01]} Re5 {[%emt 0:00:02]} 58. Kc6 {[%emt 0:00:02]} g5 {[%emt 0:00:01]} 59. Rh2 {[%emt 0:00:04]} g4 {[%emt 0:00:05]} 60. Rxh6 {[%emt 0:00:04]} Re6+ {[%emt 0:00:05]} 61. Rxe6+ {[%emt 0:00:02]} Kxe6 {[%emt 0:00:00]} *

[Event "56th Biel Festival Rapid 2023"]
[Site "Biel"]
[Date "2024.04.13"]
[Round "8.2"]
[White "Rodrigue-Lemieux, Shawn"]
[Black "Erdos, Viktor"]
[Result "1-0"]
[WhiteElo "2495"]
[BlackElo "2571"]
[PlyCount "117"]
[EventDate "2023.07.16"]
[EventType "swiss"]
[EventCountry "SUI"]
[TimeControl "900+5"]

1. e4 {[%emt 0:00:11]} e5 {[%emt 0:00:05]} 2. Nf3 {[%emt 0:00:02]} Nc6 {[%emt 0:00:02]} 3. Bb5 {[%emt 0:00:08]} a6 {[%emt 0:00:01]} 4. Ba4 {[%emt 0:00:02]} b5 {[%emt 0:00:01]} 5. Bb3 {[%emt 0:00:05]} Na5 {[%emt 0:00:06]} 6. d4 {[%emt 0:00:20]} exd4 {[%emt 0:00:12]} 7. Qxd4 {[%emt 0:00:18]} Ne7 {[%emt 0:00:29]} 8. e5 {[%emt 0:00:34]} Nxb3 {[%emt 0:01:10]} 9. axb3 {[%emt 0:00:01]} Bb7 {[%emt 0:00:01]} 10. Nc3 {[%emt 0:00:13]} Nc6 {[%emt 0:04:01]} 11. Qe4 {[%emt 0:00:14]} Be7 {[%emt 0:02:52]} 12. Qg4 {[%emt 0:00:00]} g6 {[%emt 0:00:17]} 13. Bh6 {[%emt 0:00:12]} d6 {[%emt 0:01:00]} 14. O-O-O {[%emt 0:00:31]} Qd7 {[%emt 0:00:01]} 15. Qxd7+ {[%emt 0:00:47]} Kxd7 {[%emt 0:00:02]} 16. exd6 {[%emt 0:00:06]} cxd6 {[%emt 0:02:05]} 17. Rhe1 {[%emt 0:00:36]} Rae8 {[%emt 0:00:51]} 18. Ne4 {[%emt 0:00:41]} Kc8 {[%emt 0:02:38]} 19. Bg7 {[%emt 0:01:37]} f5 {[%emt 0:00:21]} 20. Nxd6+ {[%emt 0:02:31]} Bxd6 {[%emt 0:00:01]} 21. Rxe8+ {[%emt 0:00:12]} Rxe8 {[%emt 0:00:02]} 22. Rxd6 {[%emt 0:00:01]} Re2 {[%emt 0:00:13]} 23. Rd2 {[%emt 0:00:02]} Rxd2 {[%emt 0:00:15]} 24. Kxd2 {[%emt 0:00:02]} Nd8 {[%emt 0:00:03]} 25. Ng5 {[%emt 0:00:19]} Bxg2 {[%emt 0:00:11]} 26. Nxh7 {[%emt 0:00:49]} Ne6 {[%emt 0:00:02]} 27. Be5 {[%emt 0:00:04]} Kd7 {[%emt 0:00:09]} 28. Ke3 {[%emt 0:00:23]} g5 {[%emt 0:00:07]} 29. f3 {[%emt 0:00:12]} Kc6 {[%emt 0:00:04]} 30. Kf2 {[%emt 0:00:19]} Bh3 {[%emt 0:00:04]} 31. Kg3 {[%emt 0:00:09]} Bf1 {[%emt 0:00:01]} 32. Bf6 {[%emt 0:00:01]} g4 {[%emt 0:00:11]} 33. fxg4 {[%emt 0:00:02]} fxg4 {[%emt 0:00:03]} 34. Kxg4 {[%emt 0:00:01]} Be2+ {[%emt 0:00:02]} 35. Kf5 {[%emt 0:00:07]} Nc5 {[%emt 0:00:01]} 36. b4 {[%emt 0:00:48]} Nd7 {[%emt 0:00:01]} 37. Ng5 {[%emt 0:00:18]} Bd1 {[%emt 0:00:10]} 38. c3 {[%emt 0:00:05]} Kd5 {[%emt 0:00:05]} 39. Bd4 {[%emt 0:00:00]} Nb8 {[%emt 0:00:10]} 40. h4 {[%emt 0:00:29]} Nc6 {[%emt 0:00:02]} 41. Bf6 {[%emt 0:00:22]} Bc2+ {[%emt 0:00:01]} 42. Kf4 {[%emt 0:00:01]} Bd1 {[%emt 0:00:11]} 43. Nf3 {[%emt 0:00:06]} Ke6 {[%emt 0:00:03]} 44. Bd4 {[%emt 0:01:07]} Ne7 {[%emt 0:00:10]} 45. h5 {[%emt 0:00:08]} Nd5+ {[%emt 0:00:01]} 46. Kg3 {[%emt 0:00:02]} Kf5 {[%emt 0:00:03]} 47. h6 {[%emt 0:00:10]} Kg6 {[%emt 0:00:01]} 48. Bg7 {[%emt 0:00:03]} Ne3 {[%emt 0:00:11]} 49. Ne5+ {[%emt 0:00:16]} Kh7 {[%emt 0:00:05]} 50. Kf4 {[%emt 0:00:17]} Nc4 {[%emt 0:00:01]} 51. Nd7 {[%emt 0:00:40]} Nxb2 {[%emt 0:00:08]} 52. Kg5 {[%emt 0:00:21]} Kg8 {[%emt 0:00:08]} 53. Kf6 {[%emt 0:00:53]} Bc2 {[%emt 0:00:03]} 54. Ke7 {[%emt 0:00:07]} Kh7 {[%emt 0:00:03]} 55. Kf7 {[%emt 0:00:20]} Bb3+ {[%emt 0:00:04]} 56. Kf8 {[%emt 0:00:01]} Kg6 {[%emt 0:00:11]} 57. Nf6 {[%emt 0:00:01]} Nd3 {[%emt 0:00:08]} 58. h7 {[%emt 0:00:02]} Nf4 {[%emt 0:00:03]} 59. h8=Q {[%emt 0:00:07]} 1-0